fUSD/lending_fUSD_20241221
["ID","MTS","AMOUNT","RATE_DAILY","PERIOD"]
[346159018,1734760232518,-915.79,0.00020089,2]
[346159020,1734760232527,-767.6,0.00020097,2]
[346159022,1734760232537,-178.20566159,0.0002013,2]
[346159024,1734760232547,-383.71,0.00020136,2]
[346159025,1734760232557,-19483.42,0.00020167,2]
[346159026,1734760232566,-2751.0,0.0002023,2]
[346159027,1734760232577,-150.0,0.00020244,4]
[346159028,1734760232586,-150.0,0.00020244,4]
[346159029,1734760232595,-150.0,0.00020244,4]
[346159030,1734760232605,-500.0,0.00020397,2]
[346159031,1734760232615,-1041.21,0.00020434,2]
[346159032,1734760232624,-406.94,0.00020506,2]
[346159033,1734760232634,-168.13,0.00020562,2]
[346159034,1734760232643,-700.0,0.00020614,2]
[346159035,1734760232653,-500.0,0.00020614,2]
[346159036,1734760232663,-150.74,0.00020732,30]
[346159037,1734760232672,-24771.65865784,0.00020851,2]
[346159038,1734760232790,-524.89567194,0.00020851,2]
[346159039,1734760233143,-8955.8537129,0.00020851,2]
[346159040,1734760233179,-3745.97165732,0.00020851,2]
[346159041,1734760233190,-1500.0,0.000209,2]
[346159042,1734760233199,-13191.97015475,0.000209,2]
[346159043,1734760233214,-711.47408811,0.000209,2]
[346159044,1734760233224,-703.96391301,0.000209,2]
[346159047,1734760237731,-22431.47134413,0.000209,2]
[346159048,1734760237742,-1000.0,0.000209,2]
[346159049,1734760237751,-14106.11,0.00020951,2]
[346159050,1734760237761,-3213.31,0.00020951,2]
[346159051,1734760237771,-1900.0,0.00021,20]
[346159052,1734760237781,-988.06,0.00021,2]
[346159053,1734760237791,-999.4,0.00021002,2]
[346159054,1734760237802,-500.0,0.00021028,2]
[346159055,1734760237811,-3269.0,0.000211,2]
[346159056,1734760237821,-150.1587914,0.00021309,2]
[346159057,1734760237831,-5000.0,0.00021318,2]
[346159058,1734760237840,-406.0,0.0002137,4]
[346159059,1734760237849,-564.627,0.0002137,2]
[346159060,1734760237859,-1438.69,0.00021387,2]
[346159061,1734760237869,-1438.69,0.00021387,2]
[346159062,1734760237879,-1438.69,0.00021388,2]
[346159063,1734760237888,-1155.35,0.00021396,2]
[346159064,1734760237897,-1246.53,0.00021396,2]
[346159065,1734760237907,-960.0,0.00021396,2]
[346159066,1734760237917,-1561.93,0.00021396,2]
[346159067,1734760237927,-500.0,0.00021396,2]
[346159068,1734760237936,-2269.48,0.00021396,2]
[346159069,1734760237945,-2766.75,0.00021396,2]
[346159070,1734760237954,-2209.67,0.00021396,2]
[346159071,1734760237964,-3497.78,0.00021396,2]
[346159072,1734760237974,-500.0,0.00021396,2]
[346159073,1734760237983,-1379.26,0.00021396,2]
[346159074,1734760237992,-500.0,0.00021396,2]
[346159075,1734760238002,-1280.7,0.00021396,2]
[346159076,1734760238011,-11818.19,0.00021396,2]
[346159077,1734760238020,-500.0,0.00021397,2]
[346159078,1734760238030,-500.0,0.00021397,2]
[346159079,1734760238040,-500.0,0.00021397,2]
[346159080,1734760238051,-500.0,0.00021397,2]
[346159081,1734760238061,-500.0,0.00021397,2]
[346159082,1734760238071,-500.0,0.00021397,2]
[346159083,1734760238081,-500.0,0.00021397,2]
[346159084,1734760238093,-500.0,0.00021397,2]
[346159085,1734760238102,-500.0,0.00021397,2]
[346159086,1734760238111,-500.0,0.00021397,2]
[346159087,1734760238121,-500.0,0.00021397,2]
[346159088,1734760238130,-505.22892795,0.00021397,2]
[346159089,1734760238139,-500.0,0.00021397,2]
[346159090,1734760238149,-500.0,0.00021397,2]
[346159091,1734760238162,-500.0,0.00021397,2]
[346159092,1734760238171,-503.95205546,0.00021397,2]
[346159093,1734760238181,-500.0,0.00021397,2]
[346159094,1734760238192,-500.0,0.00021397,2]
[346159095,1734760238206,-500.0,0.00021397,2]
[346159096,1734760238217,-500.0,0.00021397,2]
[346159097,1734760238228,-500.0,0.00021397,2]
[346159098,1734760238237,-500.0,0.00021397,2]
[346159099,1734760238246,-500.0,0.00021397,2]
[346159100,1734760238255,-500.0,0.00021397,2]
[346159101,1734760238264,-500.0,0.00021397,2]
[346159102,1734760238273,-500.0,0.00021397,2]
[346159103,1734760238282,-500.0,0.00021397,2]
[346159104,1734760238291,-500.0,0.00021397,2]
[346159105,1734760238302,-500.0,0.00021397,2]
[346159106,1734760238315,-1138.86,0.00021397,2]
[346159107,1734760238324,-500.0,0.00021397,2]
[346159108,1734760238333,-500.0,0.00021397,2]
[346159109,1734760238342,-1254.46,0.00021397,2]
[346159110,1734760238352,-500.0,0.00021397,2]
[346159111,1734760238366,-500.0,0.00021397,2]
[346159112,1734760238375,-500.0,0.00021397,2]
[346159113,1734760238384,-500.0,0.00021397,2]
[346159114,1734760238393,-668.58,0.00021397,2]
[346159115,1734760238402,-500.0,0.00021397,2]
[346159116,1734760238410,-639.99,0.00021397,2]
[346159117,1734760238419,-769.46,0.00021397,2]
[346159118,1734760238428,-500.0,0.00021397,2]
[346159119,1734760238437,-500.0,0.00021397,2]
[346159120,1734760238446,-500.0,0.00021397,2]
[346159121,1734760238455,-500.0,0.00021397,2]
[346159122,1734760238465,-500.0,0.00021397,2]
[346159123,1734760238475,-876.48,0.00021397,2]
[346159124,1734760238485,-500.0,0.00021397,2]
[346159125,1734760238494,-500.0,0.00021397,2]
[346159126,1734760238504,-2277.81,0.00021397,2]
[346159127,1734760238514,-152.502649,0.00021397,2]
[346159128,1734760238524,-157.564534,0.00021397,2]
[346159129,1734760238533,-1441.490821,0.00021397,2]
[346159130,1734760238543,-500.0,0.00021397,2]
[346159131,1734760238555,-500.0,0.00021397,2]
[346159132,1734760238564,-500.0,0.00021397,2]
[346159133,1734760238574,-521.91133643,0.00021397,2]
[346159134,1734760238585,-500.0,0.00021397,2]
[346159135,1734760238594,-500.0,0.00021397,2]
[346159136,1734760238607,-567.45,0.00021397,2]
[346159137,1734760238617,-500.0,0.00021397,2]
[346159138,1734760238627,-500.0,0.00021397,2]
[346159139,1734760238636,-1214.05,0.00021397,2]
[346159140,1734760238645,-500.0,0.00021397,2]
[346159141,1734760238654,-500.0,0.00021397,2]
[346159142,1734760238663,-500.0,0.00021397,2]
[346159143,1734760238672,-500.0,0.00021397,2]
[346159144,1734760238681,-1310.36,0.00021397,2]
[346159145,1734760238690,-2096.872323,0.00021397,2]
[346159146,1734760238700,-500.0,0.00021397,2]
[346159147,1734760238710,-757.08,0.00021397,2]
[346159148,1734760238719,-500.0,0.00021397,2]
[346159149,1734760238728,-500.0,0.00021397,2]
[346159150,1734760238739,-500.0,0.00021397,2]
[346159151,1734760238749,-500.0,0.00021397,2]
[346159152,1734760238758,-500.0,0.00021397,2]
[346159153,1734760238767,-500.0,0.00021397,2]
[346159154,1734760238776,-2369.67,0.00021397,2]
[346159155,1734760238785,-530.24,0.00021397,2]
[346159156,1734760238794,-579.78,0.00021397,2]
[346159157,1734760238807,-500.0,0.00021397,2]
[346159158,1734760238817,-2380.4734162,0.00021397,2]
[346159159,1734760238936,-1170.51975884,0.00021397,2]
[346159160,1734760238945,-500.0,0.00021397,2]
[346159161,1734760238954,-500.0,0.00021397,2]
[346159162,1734760238964,-499.50690646,0.00021397,2]
[346159163,1734760238973,-500.0,0.00021397,2]
[346159164,1734760238983,-500.0,0.00021397,2]
[346159165,1734760238992,-196.34646681,0.00021397,2]
[346159166,1734760239004,-303.65353319,0.00021397,2]
[346159167,1734760239013,-500.0,0.00021397,2]
[346159168,1734760239023,-500.0,0.00021397,2]
[346159169,1734760239033,-711.74,0.00021397,2]
[346159170,1734760239045,-500.0,0.00021397,2]
[346159171,1734760239055,-500.0,0.00021397,2]
[346159172,1734760239065,-240.50000554,0.00021397,2]
[346159173,1734760239076,-259.49999446,0.00021397,2]
[346159174,1734760239086,-721.01000554,0.00021397,2]
[346159175,1734760239105,-570.74999446,0.00021397,2]
[346159176,1734760239115,-405.80000554,0.00021397,2]
[346159177,1734760239142,-94.19999446,0.00021397,2]
[346159178,1734760239155,-2215.7,0.00021397,2]
[346159179,1734760239167,-500.0,0.00021397,2]
[346159180,1734760239176,-500.0,0.00021397,2]
[346159181,1734760239185,-500.0,0.00021397,2]
[346159182,1734760239196,-500.0,0.00021397,2]
[346159183,1734760239206,-1816.46,0.00021397,2]
[346159184,1734760239215,-507.49275968,0.00021397,2]
[346159185,1734760239224,-1001.55,0.00021397,2]
[346159186,1734760239233,-500.0,0.00021397,2]
[346159187,1734760239243,-541.07,0.00021397,2]
[346159188,1734760239252,-500.0,0.00021397,2]
[346159189,1734760239261,-500.0,0.00021397,2]
[346159190,1734760239271,-2078.05,0.00021397,2]
[346159191,1734760239279,-650.06,0.00021397,2]
[346159192,1734760239288,-920.43,0.00021397,2]
[346159193,1734760239298,-500.0,0.00021397,2]
[346159194,1734760239309,-500.0,0.00021397,2]
[346159195,1734760239318,-1622.68,0.00021397,2]
[346159196,1734760239328,-1332.67,0.00021397,2]
[346159197,1734760239337,-9552.21,0.00021397,2]
[346159198,1734760239347,-500.0,0.00021397,2]
[346159199,1734760239356,-500.0,0.00021397,2]
[346159200,1734760239365,-1908.41,0.00021397,2]
[346159201,1734760239375,-9608.43,0.00021397,2]
[346159202,1734760239384,-500.0,0.00021397,2]
[346159203,1734760239393,-500.0,0.00021397,2]
[346159204,1734760239403,-500.0,0.00021397,2]
[346159205,1734760239411,-500.0,0.00021397,2]
[346159206,1734760239420,-1315.3,0.00021397,2]
[346159207,1734760239429,-500.0,0.00021397,2]
[346159208,1734760239440,-2629.25,0.00021397,2]
[346159209,1734760239449,-500.0,0.00021397,2]
[346159210,1734760239459,-500.0,0.00021397,2]
[346159211,1734760239468,-786.45,0.00021397,2]
[346159212,1734760239477,-500.0,0.00021397,2]
[346159213,1734760239486,-596.24,0.00021397,2]
[346159214,1734760239495,-1966.71,0.00021397,2]
[346159215,1734760239504,-507.5168132,0.00021397,2]
[346159216,1734760239513,-750.74,0.00021397,2]
[346159217,1734760239522,-4252.21,0.00021397,2]
[346159218,1734760239531,-500.0,0.00021397,2]
[346159219,1734760239540,-500.0,0.00021397,2]
[346159220,1734760239551,-858.02,0.00021397,2]
[346159221,1734760239562,-500.0,0.00021397,2]
[346159222,1734760239572,-500.0,0.00021397,2]
[346159223,1734760239582,-500.0,0.00021397,2]
[346159224,1734760239591,-500.0,0.00021397,2]
[346159225,1734760239600,-500.0,0.00021397,2]
[346159226,1734760239609,-500.0,0.00021397,2]
[346159227,1734760239618,-6851.48,0.00021397,2]
[346159228,1734760239627,-798.1,0.00021397,2]
[346159229,1734760239637,-500.0,0.00021397,2]
[346159230,1734760239646,-349.77794581,0.00021397,2]
[346159231,1734760239658,-150.22205419,0.00021397,2]
[346159233,1734760239667,-280.46105338,0.00021397,2]
[346159235,1734760239679,-219.53894662,0.00021397,2]
[346159237,1734760239688,-500.0,0.00021397,2]
[346159239,1734760239696,-500.0,0.00021397,2]
[346159241,1734760239706,-456.31406877,0.00021397,2]
[346159243,1734760239715,-500.0,0.00021397,2]
[346159245,1734760239724,-500.0,0.00021397,2]
[346159247,1734760239733,-500.0,0.00021397,2]
[346159249,1734760239744,-500.0,0.00021397,2]
[346159250,1734760239754,-881.01126581,0.00021398,2]
[346159263,1734760240224,-1470.7649143,0.00020913,2]
[346159264,1734760240236,-351.39298801,0.00020913,2]
[346159265,1734760240248,-420.5289982,0.00020913,2]
[346159266,1734760240268,-4710.07204521,0.00020913,2]
[346159267,1734760240277,-500.0,0.00021397,2]
[346159268,1734760240287,-43997.42795479,0.00021398,2]
[346159269,1734760240299,-16795.2913419,0.00021398,2]
[346159270,1734760240325,-6178.12529359,0.00021398,2]
[346159271,1734760240342,-32336.65284391,0.00021398,2]
[346159272,1734760240351,-1438.69,0.00021408,2]
[346159273,1734760240360,-1438.69,0.00021408,2]
[346159274,1734760240370,-157.65,0.00021409,2]
[346159275,1734760240380,-500.0,0.00021418,2]
[346159276,1734760240389,-500.0,0.00021418,2]
[346159277,1734760240398,-438.82462211,0.00021418,2]
[346159278,1734760240410,-61.17537789,0.00021418,2]
[346159279,1734760240420,-171.11604354,0.00021418,2]
[346159280,1734760240430,-1115.71,0.00021418,2]
[346159282,1734760240439,-509.14562249,0.00021418,2]
[346159283,1734760240449,-500.0,0.00021418,2]
[346159284,1734760240458,-550.63,0.00021418,2]
[346159285,1734760240469,-500.0,0.00021418,2]
[346159286,1734760240478,-500.0,0.00021418,2]
[346159287,1734760240487,-924.53,0.00021418,2]
[346159288,1734760240497,-500.0,0.00021418,2]
[346159289,1734760240507,-276.48614981,0.00021418,2]
[346159290,1734760240516,-500.0,0.00021418,2]
[346159291,1734760240525,-569.895369,0.00021418,2]
[346159292,1734760240535,-500.0,0.00021418,2]
[346159293,1734760240544,-500.0,0.00021418,2]
[346159294,1734760240555,-500.0,0.00021418,2]
[346159295,1734760240564,-500.0,0.00021418,2]
[346159296,1734760240574,-898.83,0.00021418,2]
[346159297,1734760240584,-733.26,0.00021418,2]
[346159298,1734760240593,-287.47549116,0.00021418,2]
[346159299,1734760240624,-37.09035769,0.00021418,2]
[346159300,1734760240633,-727.66184472,0.00021418,2]
[346159338,1734760243038,-500.0,0.00021397,2]
[346159339,1734760243048,-500.0,0.00021397,2]
[346159340,1734760243059,-201.50815528,0.00021418,2]
[346159341,1734760243069,-556.41,0.00021418,2]
[346159342,1734760243079,-359.05528994,0.00021418,2]
[346159343,1734760243252,-504.68337981,0.00021397,2]
[346159344,1734760243262,-385.85471006,0.00021418,2]
[346159345,1734760243271,-500.0,0.00021418,2]
[346159346,1734760243281,-500.0,0.00021418,2]
[346159347,1734760243291,-500.0,0.00021418,2]
[346159348,1734760243300,-500.0,0.00021418,2]
[346159349,1734760243312,-706.2774822,0.00021418,2]
[346159353,1734760246006,-358.56419434,0.00021369,2]
[346159354,1734760246018,-607.35740352,0.00021369,2]
[346159355,1734760246121,-193230.42876408,0.00021369,2]
[346159356,1734760246135,-65407.67642868,0.00021369,2]
[346159357,1734760246147,-181281.19523315,0.00021369,2]
[346159358,1734760246961,-6060.90455366,0.00021369,2]
[346159359,1734760247007,-479.66,0.00021369,2]
[346159360,1734760247018,-301148.07772859,0.00021369,2]
[346159361,1734760247030,-551268.46984913,0.00021369,2]
[346159362,1734760247039,-1069.22,0.00021396,2]
[346159363,1734760247048,-500.0,0.00021397,2]
[346159364,1734760247059,-839.96,0.00021397,2]
[346159365,1734760247069,-14.6825178,0.00021418,2]
[346159366,1734760247078,-500.0,0.00021418,2]
[346159367,1734760247087,-500.0,0.00021418,2]
[346159368,1734760247096,-500.0,0.00021418,2]
[346159369,1734760247106,-500.0,0.00021418,2]
[346159370,1734760247116,-876.33,0.00021418,2]
[346159371,1734760247125,-500.0,0.00021418,2]
[346159372,1734760247135,-500.0,0.00021418,2]
[346159373,1734760247145,-822.57,0.00021418,2]
[346159374,1734760247155,-497.76899717,0.00021418,2]
[346159375,1734760247165,-883.51,0.00021418,2]
[346159376,1734760247174,-500.0,0.00021418,2]
[346159377,1734760247184,-500.0,0.00021418,2]
[346159378,1734760247194,-629.23,0.00021418,2]
[346159379,1734760247204,-842.12,0.00021418,2]
[346159380,1734760247213,-500.0,0.00021418,2]
[346159381,1734760247222,-500.0,0.00021418,2]
[346159382,1734760247232,-500.0,0.00021418,2]
[346159383,1734760247241,-500.0,0.00021418,2]
[346159384,1734760247251,-500.0,0.00021418,2]
[346159385,1734760247260,-573.31,0.00021418,2]
[346159386,1734760247269,-601.77,0.00021418,2]
[346159387,1734760247278,-500.0,0.00021418,2]
[346159388,1734760247288,-1320.01,0.00021418,2]
[346159389,1734760247298,-500.0,0.00021418,2]
[346159390,1734760247309,-1308.19,0.00021418,2]
[346159391,1734760247317,-500.0,0.00021418,2]
[346159392,1734760247326,-500.0,0.00021418,2]
[346159393,1734760247336,-500.0,0.00021418,2]
[346159394,1734760247345,-860.8,0.00021418,2]
[346159395,1734760247354,-500.0,0.00021418,2]
[346159396,1734760247363,-633.79,0.00021418,2]
[346159397,1734760247372,-814.94,0.00021418,2]
[346159398,1734760247381,-500.0,0.00021418,2]
[346159399,1734760247390,-572.91,0.00021418,2]
[346159400,1734760247399,-728.79,0.00021418,2]
[346159401,1734760247408,-500.0,0.00021418,2]
[346159402,1734760247417,-500.0,0.00021418,2]
[346159403,1734760247426,-809.4,0.00021418,2]
[346159404,1734760247435,-602.64,0.00021418,2]
[346159405,1734760247444,-500.0,0.00021418,2]
[346159406,1734760247453,-500.0,0.00021418,2]
[346159407,1734760247462,-781.81,0.00021418,2]
[346159408,1734760247471,-500.0,0.00021418,2]
[346159409,1734760247480,-500.0,0.00021418,2]
[346159410,1734760247489,-1411.92,0.00021418,2]
[346159411,1734760247499,-500.0,0.00021418,2]
[346159412,1734760247508,-500.0,0.00021418,2]
[346159413,1734760247517,-549.14,0.00021418,2]
[346159414,1734760247526,-500.0,0.00021418,2]
[346159415,1734760247535,-500.0,0.00021418,2]
[346159416,1734760247545,-500.0,0.00021418,2]
[346159417,1734760247554,-1890.88,0.00021418,2]
[346159418,1734760247564,-500.0,0.00021418,2]
[346159419,1734760247573,-664.1,0.00021418,2]
[346159420,1734760247583,-500.0,0.00021418,2]
[346159421,1734760247592,-1817.04,0.00021418,2]
[346159422,1734760247601,-779.87,0.00021418,2]
[346159423,1734760247611,-652.26,0.00021418,2]
[346159424,1734760247620,-500.0,0.00021418,2]
[346159425,1734760247630,-530.93,0.00021418,2]
[346159426,1734760247640,-500.0,0.00021418,2]
[346159427,1734760247650,-685.55,0.00021418,2]
[346159428,1734760247659,-813.45,0.00021418,2]
[346159429,1734760247669,-967.93,0.00021418,2]
[346159430,1734760247679,-1266.45,0.00021418,2]
[346159431,1734760247688,-1363.65,0.00021418,2]
[346159432,1734760247697,-675.55,0.00021418,2]
[346159433,1734760247707,-995.41,0.00021418,2]
[346159434,1734760247716,-749.02,0.00021418,2]
[346159435,1734760247726,-623.49,0.00021418,2]
[346159436,1734760247736,-645.22,0.00021418,2]
[346159437,1734760247747,-1118.36,0.00021418,2]
[346159438,1734760247756,-2080.06,0.00021418,2]
[346159439,1734760247766,-2407.49,0.00021418,2]
[346159440,1734760247776,-1557.12,0.00021418,2]
[346159441,1734760247785,-894.76,0.00021418,2]
[346159442,1734760247795,-522.34296257,0.00021418,2]
[346159443,1734760247807,-2865.95,0.00021418,2]
[346159444,1734760247816,-500.0,0.00021418,2]
[346159445,1734760247826,-502.28547286,0.00021418,2]
[346159446,1734760247835,-694.34,0.00021418,2]
[346159447,1734760247844,-807.36,0.00021418,2]
[346159448,1734760247853,-1255.15,0.00021418,2]
[346159449,1734760247863,-1007.69,0.00021418,2]
[346159450,1734760247872,-1033.45,0.00021418,2]
[346159451,1734760247882,-505.13438132,0.00021418,2]
[346159452,1734760247891,-698.36,0.00021418,2]
[346159453,1734760247900,-500.0,0.00021418,2]
[346159454,1734760247909,-2072.95,0.00021418,2]
[346159455,1734760247918,-975.75,0.00021418,2]
[346159456,1734760247927,-500.0,0.00021418,2]
[346159457,1734760247937,-500.0,0.00021418,2]
[346159458,1734760247946,-2437.34,0.00021418,2]
[346159459,1734760247955,-2526.7,0.00021418,2]
[346159460,1734760247965,-500.0,0.00021418,2]
[346159461,1734760247974,-500.0,0.00021418,2]
[346159462,1734760247984,-500.0,0.00021418,2]
[346159463,1734760247994,-500.0,0.00021418,2]
[346159464,1734760248003,-3908.35,0.00021418,2]
[346159465,1734760248013,-500.0,0.00021418,2]
[346159466,1734760248022,-500.0,0.00021419,2]
[346159467,1734760248032,-500.0,0.00021419,2]
[346159468,1734760248042,-500.0,0.00021419,2]
[346159469,1734760248052,-500.0,0.00021419,2]
[346159470,1734760248064,-500.0,0.00021419,2]
[346159471,1734760248074,-500.0,0.00021419,2]
[346159472,1734760248084,-500.0,0.00021419,2]
[346159473,1734760248094,-578.1,0.00021419,2]
[346159474,1734760248104,-500.0,0.00021419,2]
[346159475,1734760248113,-500.0,0.00021419,2]
[346159476,1734760248123,-500.0,0.00021419,2]
[346159477,1734760248132,-500.0,0.00021419,2]
[346159478,1734760248142,-500.0,0.00021419,2]
[346159479,1734760248153,-500.0,0.00021419,2]
[346159480,1734760248168,-500.0,0.00021419,2]
[346159481,1734760248178,-500.0,0.00021419,2]
[346159482,1734760248187,-500.0,0.00021419,2]
[346159483,1734760248197,-500.0,0.00021419,2]
[346159484,1734760248206,-500.0,0.00021419,2]
[346159485,1734760248216,-500.0,0.00021419,2]
[346159486,1734760248226,-500.0,0.00021419,2]
[346159487,1734760248236,-500.0,0.00021419,2]
[346159488,1734760248249,-500.0,0.00021419,2]
[346159489,1734760248259,-500.0,0.00021419,2]
[346159490,1734760248268,-500.0,0.00021419,2]
[346159491,1734760248278,-500.0,0.00021419,2]
[346159492,1734760248288,-500.0,0.00021419,2]
[346159493,1734760248297,-629.55,0.00021419,2]
[346159494,1734760248310,-500.0,0.00021419,2]
[346159495,1734760248319,-500.0,0.00021419,2]
[346159496,1734760248330,-500.0,0.00021419,2]
[346159497,1734760248340,-500.0,0.00021419,2]
[346159498,1734760248350,-500.0,0.00021419,2]
[346159499,1734760248360,-509.93892024,0.00021419,2]
[346159500,1734760248370,-500.0,0.00021419,2]
[346159501,1734760248379,-500.0,0.00021419,2]
[346159502,1734760248389,-500.0,0.00021419,2]
[346159503,1734760248399,-500.0,0.00021419,2]
[346159504,1734760248409,-500.0,0.00021419,2]
[346159505,1734760248418,-500.0,0.00021419,2]
[346159506,1734760248428,-500.0,0.00021419,2]
[346159507,1734760248438,-294.87482213,0.00021419,2]
[346159508,1734760248448,-545.8554983,0.00021419,2]
[346159509,1734760248458,-500.0,0.00021419,2]
[346159510,1734760248468,-500.0,0.00021419,2]
[346159511,1734760248477,-500.0,0.00021419,2]
[346159512,1734760248487,-500.0,0.00021419,2]
[346159513,1734760248496,-500.0,0.00021419,2]
[346159514,1734760248506,-500.0,0.00021419,2]
[346159515,1734760248515,-500.0,0.00021419,2]
[346159516,1734760248526,-500.0,0.00021419,2]
[346159517,1734760248535,-500.0,0.00021419,2]
[346159518,1734760248545,-500.0,0.00021419,2]
[346159519,1734760248554,-500.0,0.00021419,2]
[346159520,1734760248568,-505.93249968,0.00021419,2]
[346159521,1734760248577,-500.0,0.00021419,2]
[346159522,1734760248587,-500.0,0.00021419,2]
[346159523,1734760248597,-208.60530416,0.00021419,2]
[346159524,1734760248608,-500.0,0.00021419,2]
[346159525,1734760248617,-500.0,0.00021419,2]
[346159526,1734760248627,-610.71873946,0.00021419,2]
[346159527,1734760248709,-500.0,0.00021419,2]
[346159528,1734760248719,-500.0,0.00021419,2]
[346159529,1734760248729,-500.0,0.00021419,2]
[346159530,1734760248739,-484.23561266,0.00021419,2]
[346159531,1734760248749,-500.0,0.00021419,2]
[346159532,1734760248759,-500.0,0.00021419,2]
[346159533,1734760248769,-500.0,0.00021419,2]
[346159534,1734760248779,-500.0,0.00021419,2]
[346159535,1734760248788,-500.0,0.00021419,2]
[346159536,1734760248798,-500.0,0.00021419,2]
[346159537,1734760248808,-500.0,0.00021419,2]
[346159538,1734760248817,-500.0,0.00021419,2]
[346159539,1734760248827,-500.0,0.00021419,2]
[346159540,1734760248836,-500.0,0.00021419,2]
[346159541,1734760248846,-500.0,0.00021419,2]
[346159542,1734760248855,-500.0,0.00021419,2]
[346159543,1734760248865,-500.0,0.00021419,2]
[346159544,1734760248875,-500.0,0.00021419,2]
[346159545,1734760248885,-500.0,0.00021419,2]
[346159546,1734760248895,-500.0,0.00021419,2]
[346159547,1734760248904,-500.0,0.00021419,2]
[346159548,1734760248913,-510.38,0.00021419,2]
[346159549,1734760248922,-500.0,0.00021419,2]
[346159550,1734760248931,-500.0,0.00021419,2]
[346159551,1734760248940,-500.0,0.00021419,2]
[346159552,1734760248950,-500.0,0.00021419,2]
[346159553,1734760248959,-911.6,0.00021419,2]
[346159554,1734760248968,-500.0,0.00021419,2]
[346159555,1734760248977,-500.0,0.00021419,2]
[346159556,1734760248985,-500.0,0.00021419,2]
[346159557,1734760248994,-500.0,0.00021419,2]
[346159558,1734760249004,-500.0,0.00021419,2]
[346159559,1734760249013,-500.0,0.00021419,2]
[346159560,1734760249025,-268.89224958,0.00021419,2]
[346159561,1734760249034,-500.0,0.00021419,2]
[346159562,1734760249043,-514.41170029,0.00021419,2]
[346159563,1734760249052,-500.0,0.00021419,2]
[346159564,1734760249063,-500.0,0.00021419,2]
[346159565,1734760249072,-500.0,0.00021419,2]
[346159566,1734760249081,-500.0,0.00021419,2]
[346159567,1734760249091,-500.0,0.00021419,2]
[346159568,1734760249100,-500.0,0.00021419,2]
[346159569,1734760249109,-500.0,0.00021419,2]
[346159570,1734760249119,-500.0,0.00021419,2]
[346159571,1734760249129,-500.0,0.00021419,2]
[346159572,1734760249139,-511.58223437,0.00021419,2]
[346159573,1734760249148,-500.0,0.00021419,2]
[346159574,1734760249161,-500.0,0.00021419,2]
[346159575,1734760249170,-500.0,0.00021419,2]
[346159576,1734760249180,-500.0,0.00021419,2]
[346159577,1734760249195,-150.654174,0.00021497,2]
[346159578,1734760249206,-4872.94,0.00021497,2]
[346159579,1734760249216,-500.0,0.00021497,2]
[346159580,1734760249225,-1109.48,0.00021497,2]
[346159581,1734760249235,-717.45,0.00021497,2]
[346159582,1734760249246,-3054.02,0.00021497,2]
[346159583,1734760249255,-1159.43,0.00021497,2]
[346159584,1734760249264,-1431.4,0.00021497,2]